bitfinex-derivatives/quotes_SOLF0:USTF0_20241103
["timestamp","ask_amount","ask_price","bid_price","bid_amount"]
[1730600791341,3.0613,163.39,163.35,5.6697908]
[1730600791541,4.4,163.43,163.35,2.6079908]
[1730600792154,3.0609,163.41,163.35,2.6079908]
[1730600792454,4.4,163.44,163.37,14.69864641]
[1730600792652,3.0604,163.44,163.39,3.0612]
[1730600792859,19.09864641,163.47,163.39,3.0612]
[1730600793056,3.0604,163.44,163.39,3.0612]
[1730600793244,3.0604,163.44,163.37,14.69864641]
[1730600793245,19.09864641,163.47,163.37,14.69864641]
[1730600793445,14.69864641,163.45,163.36,2.6147]
[1730600793646,3.0608,163.42,163.36,2.6147]
[1730600793844,3.0608,163.42,163.37,3.0614]
[1730600794042,23.51880148,163.46,163.37,3.0614]
[1730600794260,23.51880148,163.46,163.36,2.6147]
[1730600794559,23.51880148,163.46,163.37,3.0615]
[1730600794753,23.51880148,163.46,163.36,2.6147]
[1730600794942,23.51880148,163.46,163.36,5.6764]
[1730600795752,3.0609,163.41,163.36,5.6764]
[1730600796355,3.0609,163.41,163.37,3.0615]
[1730600796652,23.51880148,163.46,163.36,2.6147]
[1730600796653,3.0606,163.43,163.36,2.6147]
[1730600796856,3.0606,163.43,163.38,3.0614]
[1730600797055,23.51880148,163.46,163.35,2.6079908]
[1730600797255,23.51880148,163.44,163.35,2.6079908]
[1730600797557,23.51880148,163.46,163.35,5.6698908]
[1730600797858,3.0611,163.4,163.35,5.6698908]
[1730600798156,23.51880148,163.46,163.35,5.6698908]
[1730600798547,3.0612,163.4,163.35,5.6698908]
[1730600798746,23.51880148,163.46,163.35,5.6698908]
[1730600799160,23.51880148,163.46,163.35,2.6079908]
[1730600799959,3.0616,163.37,163.35,2.6079908]
[1730600801063,3.0617,163.36,163.35,2.6079908]
[1730600801659,7.2817,163.36,163.35,2.6079908]
[1730600802364,7.2817,163.36,163.28,3.65629396]
[1730600802365,3.0631,163.29,163.28,3.65629396]
[1730600802550,4.22,163.31,163.28,3.65629396]
[1730600803668,7.2828,163.31,163.28,3.65629396]
[1730600803861,4.22,163.31,163.28,3.65629396]
[1730600804159,4.5,163.37,163.28,3.65629396]
[1730600804549,3.0621,163.35,163.28,3.65629396]
[1730600804749,4.5,163.37,163.28,3.65629396]
[1730600805165,4.5,163.37,163.3,3.0627]
[1730600805358,4.5,163.37,163.28,3.65629396]
[1730600805750,3.0623,163.34,163.28,6.71939396]
[1730600806464,3.0621,163.35,163.29,3.063]
[1730600806962,4.5,163.37,163.28,3.65629396]
[1730600807155,3.0625,163.33,163.28,3.65629396]
[1730600807359,4.5,163.37,163.28,3.65629396]
[1730600807563,3.0626,163.32,163.28,3.65629396]
[1730600807766,4.5,163.37,163.28,3.65629396]
[1730600808265,3.0621,163.35,163.29,3.0629]
[1730600808567,4.5,163.36,163.28,3.65629396]
[1730600808755,4.5,163.36,163.29,2.6342]
[1730600809570,7.5619,163.36,163.3,3.0627]
[1730600810067,4.5,163.36,163.32,3.0624]
[1730600810266,7.5615,163.38,163.32,3.0624]
[1730600810573,7.5615,163.38,163.29,3.8908]
[1730600810764,4.5,163.38,163.34,3.0621]
[1730600810963,3.0612,163.39,163.29,27.40960148]
[1730600811365,4.5,163.4,163.29,27.40960148]
[1730600811560,3.0614,163.38,163.33,3.0622]
[1730600811959,4.5,163.4,163.29,3.8908]
[1730600812573,3.0622,163.34,163.29,6.9537]
[1730600812779,4.5,163.4,163.29,6.9537]
[1730600813068,23.51880148,163.38,163.29,2.6342]
[1730600813865,3.0623,163.33,163.29,2.6342]
[1730600814274,23.51880148,163.38,163.29,2.6342]
[1730600814466,3.0625,163.32,163.29,2.6342]
[1730600814983,3.0623,163.34,163.3,3.0628]
[1730600817980,3.0621,163.35,163.31,3.0626]
[1730600818177,14.71157274,163.38,163.31,3.0626]
[1730600818381,4.5,163.37,163.31,3.0626]
[1730600819183,3.0623,163.33,163.29,5.6972]
[1730600820185,4.5,163.37,163.3,14.71157274]
[1730600820385,19.21157274,163.4,163.3,14.71157274]
[1730600820577,19.21157274,163.4,163.3,15.99617274]
[1730600820884,44.1,163.44,163.3,15.99617274]
[1730600820885,4.5,163.41,163.32,14.71157274]
[1730600821383,3.0615,163.38,163.34,3.062]
[1730600821680,3.0615,163.38,163.35,3.0619]
[1730600822072,3.061,163.4,163.32,14.71157274]
[1730600822283,14.71157274,163.42,163.37,3.0614]
[1730600822785,3.0608,163.41,163.37,3.0614]
[1730600822983,19.21157274,163.44,163.34,14.71157274]
[1730600823184,3.0606,163.43,163.38,3.0612]
[1730600823378,4.5,163.45,163.36,14.71157274]
[1730600823379,4.5,163.45,163.37,2.7396]
[1730600823779,3.0605,163.43,163.39,3.0611]
[1730600823980,14.71157274,163.47,163.37,2.7396]
[1730600824185,4.5,163.47,163.38,14.71157274]
[1730600824385,3.0598,163.47,163.42,3.0605]
[1730600824882,3.0598,163.47,163.43,3.0604]
[1730600825287,14.71157274,163.53,163.43,14.71157274]
[1730600825489,11.49863904,163.52,163.46,3.0599]
[1730600825694,4.5,163.53,163.45,14.71157274]
[1730600826183,19.21157274,163.57,163.46,1.3595]
[1730600826385,3.0585,163.54,163.46,1.3595]
[1730600826700,8.3693747,163.64,163.46,1.3595]
[1730600826701,14.71157274,163.64,163.51,14.71157274]
[1730600826881,3.0572,163.61,163.53,14.71157274]
[1730600827184,14.71157274,163.64,163.53,14.71157274]
[1730600827378,0.95462325,163.63,163.53,14.71157274]
[1730600827585,0.95462325,163.63,163.53,17.76997274]
[1730600827789,0.95462325,163.63,163.53,14.71157274]
[1730600827995,3.0571,163.62,163.53,14.71157274]
[1730600828387,3.0571,163.62,163.55,3.058]
[1730600828892,3.0571,163.61,163.55,3.058]
[1730600829495,14.71157274,163.64,163.53,14.71157274]
[1730600829690,3.0569,163.62,163.56,3.058]
[1730600829987,14.71157274,163.64,163.53,14.71157274]
[1730600830193,3.0572,163.61,163.54,3.0582]
[1730600830789,3.0572,163.61,163.53,14.71157274]
[1730600831093,3.0572,163.61,163.55,3.0581]
[1730600831607,3.0574,163.59,163.53,17.76997274]
[1730600831893,4.5,163.65,163.53,14.71157274]
[1730600832101,0.95456941,163.64,163.53,14.71157274]
[1730600832283,3.0575,163.59,163.53,17.77007274]
[1730600832490,14.71157274,163.62,163.52,2.5583]
[1730600832795,14.71157274,163.57,163.47,19.21157274]
[1730600832978,14.71157274,163.57,163.46,1.3595]
[1730600832979,14.71157274,163.55,163.46,1.3595]
[1730600833784,14.71157274,163.6,163.49,14.71157274]
[1730600834292,14.71157274,163.6,163.46,1.3595]
[1730600834293,19.29157274,163.62,163.51,14.71157274]
[1730600835395,3.0574,163.59,163.53,3.0585]
[1730600835898,3.0576,163.58,163.53,3.0585]
[1730600836794,3.0579,163.57,163.51,17.77047274]
[1730600836990,19.29157274,163.62,163.51,14.71157274]
[1730600837592,3.0578,163.58,163.52,3.0587]
[1730600837989,4.58,163.62,163.56,14.71157274]
[1730600838393,44.1,163.66,163.56,14.71157274]
[1730600838394,4.58,163.64,163.56,14.71157274]
[1730600839296,3.0572,163.61,163.56,17.32457274]
[1730600839499,4.58,163.64,163.56,17.32457274]
[1730600839703,19.29157274,163.64,163.54,14.71157274]
[1730600839906,3.0574,163.59,163.54,14.71157274]
[1730600840301,19.29157274,163.64,163.54,14.71157274]
[1730600840913,3.0571,163.61,163.54,14.71157274]
[1730600841311,3.0571,163.61,163.56,14.71157274]
[1730600841809,3.0571,163.61,163.56,17.76947274]
[1730600842617,3.0569,163.62,163.57,3.0578]
[1730600843513,3.0568,163.63,163.58,17.76907274]
[1730600844032,3.0566,163.64,163.58,14.71157274]
[1730600844226,3.0566,163.64,163.59,5.6926]
[1730600844527,40.01263254,163.68,163.59,2.6352]
[1730600844935,3.0563,163.66,163.59,2.6352]
[1730600845125,40.01263254,163.68,163.59,2.6352]
[1730600845519,3.0567,163.63,163.6,14.71157274]
[1730600846540,3.0562,163.66,163.6,14.71157274]
[1730600846726,40.01263254,163.68,163.6,14.71157274]
[1730600846932,54.72420528,163.68,163.59,2.6352]
[1730600847229,3.0574,163.59,163.56,15.98797274]
[1730600847728,14.71157274,163.66,163.56,15.98797274]
[1730600848033,3.0578,163.58,163.56,15.98797274]
[1730600848742,19.29157274,163.62,163.51,14.71157274]
[1730600849033,53.78263254,163.68,163.49,2.6566]
[1730600849034,14.71157274,163.59,163.49,17.36817274]
[1730600849224,3.0585,163.54,163.49,17.36817274]
[1730600849420,3.0585,163.54,163.51,14.71157274]
[1730600849639,4.58,163.58,163.51,14.71157274]
[1730600849827,3.0582,163.56,163.53,14.71157274]
[1730600850629,3.0582,163.55,163.53,14.71157274]
[1730600851126,3.0581,163.56,163.51,14.71157274]
[1730600851437,4.58,163.64,163.55,14.71157274]
[1730600851735,3.0574,163.6,163.55,17.76967274]
[1730600851924,4.58,163.64,163.55,17.76967274]
[1730600852128,4.58,163.64,163.55,14.71157274]
[1730600852646,4.58,163.64,163.55,17.76967274]
[1730600853131,4.58,163.64,163.55,14.71157274]
[1730600853339,3.0582,163.56,163.51,22.35047274]
[1730600853525,3.0582,163.56,163.51,17.77047274]
[1730600853724,3.0589,163.51,163.49,17.36817274]
[1730600853925,14.71157274,163.57,163.49,2.6566]
[1730600854133,19.29157274,163.57,163.49,2.6566]
[1730600855036,3.0586,163.53,163.49,2.6566]
[1730600855343,3.0586,163.53,163.49,17.36817274]
[1730600855527,3.0589,163.52,163.49,2.6566]
[1730600855727,28.07603276,163.57,163.43,23.49603276]
[1730600855922,28.07603276,163.57,163.31,23.49603276]
[1730600855923,23.49603276,163.54,163.41,27.28503276]
[1730600856338,3.0591,163.51,163.41,30.34573276]
[1730600856632,4.58,163.51,163.41,27.28503276]
[1730600857939,3.0598,163.47,163.41,27.28503276]
[1730600858134,4.58,163.51,163.41,27.28503276]
[1730600858338,3.0591,163.51,163.46,3.0598]
[1730600858541,4.58,163.53,163.41,3.789]
[1730600859037,3.0592,163.5,163.41,6.8497]
[1730600859247,4.58,163.53,163.41,3.789]
[1730600859632,4.58,163.53,163.41,6.8497]
[1730600860334,23.49603276,163.48,163.35,23.49603276]
[1730600860541,23.49603276,163.48,163.31,28.29120312]
[1730600860542,23.49603276,163.46,163.32,27.52023276]
[1730600860725,3.0608,163.42,163.32,27.52023276]
[1730600860929,4.58,163.45,163.34,3.0621]
[1730600861540,3.0613,163.39,163.32,27.52023276]
[1730600861845,4.58,163.45,163.32,27.52023276]
[1730600862231,4.58,163.45,163.32,4.0242]
[1730600862429,23.49603276,163.43,163.32,4.0242]
[1730600863238,3.0617,163.37,163.32,4.0242]
[1730600863632,4.58,163.45,163.32,27.52023276]
[1730600863936,3.0612,163.39,163.32,27.52023276]
[1730600864143,3.0612,163.39,163.34,3.0621]
[1730600865747,4.58,163.45,163.32,27.52023276]
[1730600866045,3.0615,163.38,163.32,27.52023276]
[1730600866245,4.58,163.45,163.32,4.0242]
[1730600866436,3.0617,163.37,163.32,4.0242]
[1730600867044,3.0617,163.37,163.32,7.0866]
[1730600868245,3.0618,163.36,163.32,7.0866]
[1730600868545,4.58,163.45,163.34,3.062]
[1730600868733,4.58,163.45,163.32,27.52023276]
[1730600868934,23.49603276,163.43,163.32,4.0242]
[1730600869244,23.49603276,163.43,163.32,2.635]
[1730600869549,3.0617,163.37,163.32,2.635]
[1730600869741,3.0617,163.37,163.32,5.6975]
[1730600870248,3.0616,163.37,163.32,5.6975]
[1730600870543,4.4,163.39,163.32,2.635]
[1730600870938,3.0616,163.37,163.32,2.635]
[1730600871140,4.4,163.39,163.33,3.0623]
[1730600871543,3.0615,163.38,163.33,3.0623]
[1730600871942,4.4,163.39,163.33,3.0623]
[1730600873345,3.0616,163.37,163.33,3.0623]
[1730600873542,4.4,163.39,163.33,3.0623]
[1730600873754,4.4,163.42,163.33,23.49603276]
[1730600874054,3.0609,163.41,163.33,23.49603276]
[1730600874236,3.0609,163.41,163.36,3.0617]
[1730600874545,4.4,163.45,163.38,23.49603276]
[1730600874736,367.49603276,163.57,163.35,23.49603276]
[1730600874737,4.4,163.47,163.35,23.49603276]
[1730600875046,4.4,163.46,163.35,23.49603276]
[1730600875248,27.89603276,163.46,163.35,3.0619]
[1730600875432,27.89603276,163.46,163.32,26.13103276]
[1730600875636,3.0611,163.4,163.32,26.13103276]
[1730600875843,27.89603276,163.46,163.32,26.13103276]
[1730600876039,31.01646505,163.46,163.32,26.13103276]
[1730600876241,27.89603276,163.46,163.32,26.13103276]
[1730600876443,27.89603276,163.46,163.35,3.0618]
[1730600876645,27.89603276,163.46,163.32,26.13103276]
[1730600876646,30.88602602,163.46,163.32,26.13103276]
[1730600877045,3.0613,163.39,163.34,3.0621]
[1730600877536,30.88602602,163.46,163.34,3.0621]
[1730600877839,14.70707786,163.42,163.32,17.34207786]
[1730600878350,3.0611,163.4,163.35,3.0619]
[1730600878547,3.0611,163.4,163.34,14.70707786]
[1730600878941,3.0611,163.4,163.35,3.0618]
[1730600879144,14.70707786,163.45,163.34,14.70707786]
[1730600879453,4.4,163.44,163.35,3.0619]
[1730600879649,3.0608,163.42,163.35,3.0619]
[1730600879853,4.4,163.44,163.35,3.0619]
[1730600880539,3.0611,163.4,163.35,3.0619]
[1730600880743,4.4,163.44,163.35,3.0619]
[1730600881145,3.0615,163.38,163.34,14.70707786]
[1730600881541,4.4,163.44,163.34,14.70707786]
[1730600882257,3.0613,163.39,163.34,17.76907786]
[1730600882552,3.0613,163.39,163.34,14.70707786]
[1730600882752,3.061,163.41,163.36,3.0617]
[1730600883053,14.70707786,163.41,163.32,2.635]
[1730600883250,3.0619,163.36,163.32,2.635]
[1730600883457,14.70707786,163.39,163.32,2.635]
[1730600883758,4.4,163.38,163.32,2.635]
[1730600885744,3.062,163.35,163.32,2.635]
[1730600886564,4.4,163.38,163.32,2.635]
[1730600886747,3.0622,163.34,163.32,2.635]
[1730600887254,3.0621,163.35,163.32,2.635]
[1730600888152,3.0621,163.34,163.32,2.635]
[1730600889051,3.0621,163.34,163.3,3.0628]
[1730600889851,3.0624,163.33,163.29,19.05957786]
[1730600890659,4.4,163.38,163.26,2.6193]
[1730600890660,3.0631,163.29,163.27,14.70707786]
[1730600890960,14.70707786,163.36,163.27,14.70707786]
[1730600891158,4.4,163.38,163.27,14.70707786]
[1730600891350,4.4,163.38,163.28,6.71949396]
[1730600891948,4.4,163.38,163.28,3.65629396]
[1730600892148,3.0626,163.32,163.28,3.65629396]
[1730600892753,14.70707786,163.39,163.29,3.0629]
[1730600892944,4.4,163.36,163.29,3.0629]
[1730600893142,3.0626,163.32,163.28,3.65629396]
[1730600893461,4.4,163.36,163.28,3.65629396]
[1730600893846,3.0629,163.3,163.28,3.65629396]
[1730600894253,4.4,163.36,163.28,3.65629396]
[1730600894452,3.0625,163.33,163.28,6.71949396]
[1730600894652,4.4,163.36,163.28,6.71949396]
[1730600894961,4.4,163.36,163.29,14.70707786]
[1730600895741,3.0621,163.35,163.3,3.0628]
[1730600895942,3.10630539,163.45,163.29,14.70707786]
[1730600896142,14.70707786,163.41,163.3,1.2985]
[1730600896347,3.062,163.35,163.31,3.0625]
[1730600897859,4.18,163.38,163.3,1.2985]
[1730600898254,3.0622,163.34,163.3,4.3614]
[1730600899058,3.0618,163.36,163.3,1.2985]
[1730600899249,4.18,163.38,163.3,1.2985]
[1730600899650,3.0621,163.34,163.31,3.0627]
[1730600899853,4.18,163.38,163.3,1.2985]
[1730600900062,4.18,163.38,163.28,3.65629396]
[1730600900257,4.18,163.38,163.28,6.71939396]
[1730600900557,14.70707786,163.37,163.28,3.65629396]
[1730600900959,3.0627,163.31,163.28,3.65629396]
[1730600901254,4.18,163.33,163.28,3.65629396]
[1730600902460,3.0628,163.31,163.28,3.65629396]
[1730600902853,4.18,163.33,163.28,3.65629396]
[1730600903053,3.0623,163.34,163.28,3.65629396]
[1730600903449,3.0623,163.34,163.29,3.0629]
[1730600903655,3.0623,163.34,163.28,3.65629396]
[1730600903857,4.18,163.35,163.28,3.65629396]
[1730600904259,4.18,163.35,163.28,6.71939396]
[1730600904764,3.0623,163.33,163.28,6.71939396]
[1730600904962,4.18,163.35,163.28,6.71939396]
[1730600905162,3.0625,163.32,163.28,6.71939396]
[1730600905363,4.18,163.35,163.28,3.65629396]
[1730600905962,3.0628,163.31,163.28,3.65629396]
[1730600906362,4.18,163.35,163.28,3.65629396]
[1730600906363,3.0631,163.29,163.28,3.65629396]
[1730600916753,3.0627,163.31,163.28,3.65629396]
[1730600916962,4.18,163.3,163.28,3.65629396]
[1730600917562,3.0631,163.29,163.28,3.65629396]
[1730600918567,4.18,163.3,163.28,3.65629396]
[1730600919253,3.0631,163.29,163.28,3.65629396]
[1730600920457,4.18,163.3,163.28,3.65629396]
[1730600921063,3.0631,163.29,163.28,3.65629396]
[1730600923158,7.2031,163.29,163.28,3.65629396]
[1730600925166,3.0631,163.29,163.28,3.65629396]
[1730600926076,4.14,163.3,163.28,3.65629396]
[1730600926868,3.0631,163.29,163.28,3.65629396]
[1730600931582,3.0642,163.23,163.21,3.03030621]
[1730600932076,14.70707786,163.32,163.21,3.03030621]
[1730600932077,17.77147786,163.22,163.21,3.03030621]
[1730600932282,18.84707786,163.22,163.12,3.0661]
[1730600932870,3.0653,163.17,163.12,3.0661]
[1730600933570,14.70707786,163.19,163.11,18.57377786]
[1730600933770,14.70707786,163.19,163.11,21.64017786]
[1730600934189,3.0652,163.18,163.11,3.8667]
[1730600934379,14.70707786,163.19,163.11,6.933]
[1730600935388,3.0655,163.17,163.11,6.933]
[1730600936577,3.0652,163.18,163.11,6.933]
[1730600936883,14.70707786,163.19,163.11,6.933]
[1730600937689,14.70707786,163.21,163.11,18.57377786]
[1730600938488,4.14,163.24,163.16,14.70707786]
[1730600938789,3.0643,163.23,163.18,3.065]
[1730600938987,39.65710941,163.27,163.19,2.6298]
[1730600939176,39.65710941,163.27,163.19,4.0076]
[1730600939372,38.58070941,163.27,163.22,3.0642]
[1730600939576,18.84707786,163.3,163.2,14.70707786]
[1730600940282,18.84707786,163.3,163.23,3.0641]
[1730600940475,18.84707786,163.3,163.2,14.70707786]
[1730600940874,18.84707786,163.3,163.19,4.0076]
[1730600940875,14.70707786,163.28,163.19,4.0076]
[1730600941282,4.14,163.3,163.19,4.0076]
[1730600941283,3.0644,163.22,163.19,4.0076]
[1730600941489,14.70707786,163.26,163.19,4.0076]
[1730600941688,4.14,163.25,163.19,4.0076]
[1730600941889,3.0645,163.22,163.19,4.0076]
[1730600942186,4.14,163.25,163.19,4.0076]
[1730600943287,3.0643,163.23,163.19,4.0076]
[1730600943788,4.14,163.25,163.19,4.0076]
[1730600944290,4.14,163.26,163.19,7.0724]
[1730600944889,14.70707786,163.28,163.19,4.0076]
[1730600945086,4.14,163.27,163.19,4.0076]
[1730600945491,3.0641,163.24,163.19,7.0725]
[1730600945694,4.14,163.27,163.19,7.0725]
[1730600946101,3.0641,163.24,163.19,7.0725]
[1730600946795,3.0641,163.24,163.2,3.0647]
[1730600947797,4.14,163.27,163.19,4.0076]
[1730600948000,3.0643,163.23,163.19,7.0725]
[1730600948798,14.70707786,163.25,163.19,4.0076]
[1730600949299,3.0644,163.22,163.19,4.0076]
[1730600949503,14.70707786,163.25,163.19,4.0076]
[1730600949891,3.0643,163.23,163.19,7.0725]
[1730600950490,3.0644,163.22,163.19,7.0725]
[1730600951299,3.0647,163.2,163.19,1.353]
[1730600953001,3.0646,163.21,163.19,1.353]
[1730600953304,14.70707786,163.23,163.19,1.353]
[1730600953891,14.70707786,163.25,163.19,1.353]
[1730600954093,3.0641,163.24,163.19,1.353]
[1730600954301,14.70707786,163.25,163.19,1.353]
[1730600954800,3.0645,163.22,163.19,1.353]
[1730600956005,3.0646,163.21,163.19,1.353]
[1730600956399,14.70707786,163.25,163.19,1.353]
[1730600956603,4.14,163.27,163.19,1.353]
[1730600956604,3.0647,163.21,163.19,1.353]
[1730600957598,3.0647,163.2,163.15,3.0656]
[1730600957797,3.0647,163.2,163.15,4.4227]
[1730600958008,14.70707786,163.23,163.15,4.4227]
[1730600958210,3.0646,163.21,163.15,4.4227]
[1730600958504,14.70707786,163.23,163.15,4.4227]
[1730600959000,4.1,163.22,163.15,1.3571]
[1730600960300,3.0651,163.19,163.15,4.4228]
[1730600960497,4.1,163.22,163.15,1.3571]
[1730600960697,3.0644,163.22,163.16,3.0654]
[1730600960896,14.70707786,163.25,163.16,3.0654]
[1730600960897,18.80707786,163.25,163.16,3.0654]
[1730600961298,18.80707786,163.25,163.15,1.3571]
[1730600961505,3.0645,163.22,163.18,3.065]
[1730600961804,18.80707786,163.27,163.15,16.06417786]
[1730600961998,3.064,163.24,163.15,16.06417786]
[1730600962204,18.80707786,163.27,163.15,16.06417786]
[1730600962404,14.70707786,163.27,163.17,14.70707786]
[1730600962605,3.0641,163.24,163.17,14.70707786]
[1730600962809,14.70707786,163.27,163.17,14.70707786]
[1730600963200,3.064,163.24,163.19,3.0649]
[1730600963803,3.064,163.24,163.2,3.0647]
[1730600964003,3.064,163.24,163.21,1.2672]
[1730600964202,3.0642,163.23,163.21,1.2672]
[1730600964401,14.70707786,163.25,163.15,16.06417786]
[1730600964600,14.70707786,163.25,163.15,17.42937786]
[1730600965211,14.70707786,163.25,163.17,3.0652]
[1730600965712,14.70707786,163.25,163.15,17.42937786]
[1730600966614,14.70707786,163.25,163.15,2.7223]
[1730600966904,14.70707786,163.23,163.15,2.7223]
[1730600967896,3.0646,163.21,163.15,2.7223]
[1730600968106,14.70707786,163.23,163.15,2.7223]
[1730600968901,18.80707786,163.23,163.15,2.7223]
[1730600969311,3.065,163.19,163.15,2.7223]
[1730600969501,18.80707786,163.23,163.15,2.7223]
[1730600969707,3.0652,163.18,163.15,2.7223]
[1730600970105,18.80707786,163.23,163.15,5.7879]
[1730600970702,3.0646,163.21,163.17,3.0652]
[1730600971618,4.1,163.23,163.16,14.70707786]
[1730600971808,3.0644,163.22,163.18,3.0651]
[1730600972303,3.0644,163.22,163.17,3.0653]
[1730600972501,3.0644,163.22,163.16,14.70707786]
[1730600973109,3.0644,163.22,163.17,3.0652]
[1730600973616,35.51351121,163.28,163.2,14.70707786]
[1730600973807,35.51351121,163.28,163.21,1.3828]
[1730600974216,35.51351121,163.28,163.22,1.3118]
[1730600974513,35.51351121,163.28,163.23,3.0642]
[1730600974723,4.1,163.31,163.22,16.01887786]
[1730600975027,14.70707786,163.35,163.24,14.70707786]
[1730600975214,1.3059,163.37,163.22,2.6891]
[1730600975215,16.01297786,163.37,163.26,14.70707786]
[1730600975616,3.0624,163.33,163.26,14.70707786]
[1730600975803,14.70707786,163.37,163.26,18.80707786]
[1730600976006,3.0618,163.36,163.28,14.70707786]
[1730600976319,3.0618,163.36,163.29,4.0719]
[1730600976521,3.0618,163.36,163.31,3.0625]
[1730600977016,3.0618,163.36,163.29,4.0719]
[1730600977317,4.1,163.38,163.29,4.0719]
[1730600977515,3.062,163.35,163.29,4.0719]
[1730600977712,14.70707786,163.39,163.31,3.0625]
[1730600977913,3.0619,163.36,163.31,3.0625]
[1730600978310,14.70707786,163.39,163.31,3.0625]
[1730600978514,3.0624,163.33,163.29,7.1348]
[1730600979314,14.70707786,163.4,163.29,1.3118]
[1730600979616,14.70707786,163.37,163.29,1.3118]
[1730600980015,3.0628,163.31,163.29,1.3118]
[1730600982022,4.08,163.36,163.29,1.3118]
[1730600982207,14.70707786,163.34,163.26,1.3891]
[1730600982706,14.70707786,163.34,163.26,4.4527]
[1730600982903,14.70707786,163.32,163.24,1.2638]
[1730600983107,14.70707786,163.3,163.24,1.2638]
[1730600983914,3.0638,163.26,163.24,1.2638]
[1730600984218,14.70707786,163.3,163.2,4.08]
[1730600984522,14.70707786,163.28,163.2,4.08]
[1730600984912,3.0641,163.24,163.2,7.1447]
[1730600985923,3.0641,163.24,163.2,3.0647]
[1730600986126,3.0642,163.23,163.2,3.0647]
[1730600987828,14.70707786,163.26,163.18,1.2638]
[1730600988215,3.0645,163.22,163.18,4.3288]
[1730600989524,14.70707786,163.28,163.18,1.2638]
[1730600989930,14.70707786,163.28,163.2,3.0647]
[1730600991030,3.0642,163.23,163.2,3.0647]
[1730600991233,14.70707786,163.28,163.18,1.2638]
[1730600991823,14.70707786,163.26,163.18,1.2638]
[1730600992230,3.0641,163.24,163.19,3.0649]
[1730600993033,3.064,163.24,163.2,3.0647]
[1730600993334,14.70707786,163.28,163.18,1.2638]
[1730600994221,3.064,163.24,163.2,3.0647]
[1730600995021,14.70707786,163.28,163.18,1.2638]
[1730600995734,3.0638,163.25,163.2,3.0646]
[1730600995925,14.70707786,163.28,163.2,3.0646]
[1730600996431,14.70707786,163.26,163.16,3.0654]
[1730600997028,14.70707786,163.26,163.15,17.77267786]
[1730600997625,3.0649,163.19,163.15,17.77267786]
[1730600998637,3.0653,163.18,163.14,6.61782483]
[1730600998833,14.70707786,163.22,163.14,3.55202483]
[1730600999348,3.0656,163.16,163.14,3.55202483]
[1730600999643,4.02,163.19,163.14,3.55202483]
[1730601000344,3.0657,163.15,163.14,3.55202483]
[1730601002238,4.02,163.19,163.14,3.55202483]
[1730601002830,3.0657,163.15,163.14,3.55202483]
[1730601003026,17.77277786,163.15,163.14,3.55202483]
[1730601003228,3.0657,163.15,163.14,3.55202483]
[1730601003534,3.0655,163.16,163.14,3.55202483]
[1730601004043,1.3664,163.23,163.14,3.55202483]
[1730601004044,4.02,163.18,163.14,3.55202483]
[1730601004757,3.0657,163.15,163.14,3.55202483]
[1730601005241,3.0657,163.15,163.14,1.46162483]
[1730601006241,17.77277786,163.15,163.14,1.46162483]
[1730601009138,3.0657,163.15,163.14,1.46162483]
[1730601009737,17.77277786,163.15,163.14,1.46162483]
[1730601010149,3.0657,163.15,163.14,1.46162483]
[1730601011459,17.77277786,163.15,163.14,1.46162483]
[1730601011643,17.77277786,163.15,163.07,3.84925612]
[1730601011644,14.70707786,163.15,163.07,3.84925612]
[1730601011852,14.70707786,163.11,163.07,3.84925612]
[1730601012149,4.02,163.1,163.07,3.84925612]
[1730601012741,3.067,163.08,163.07,3.84925612]
[1730601013945,3.067,163.08,163.0,4.17495468]
[1730601013946,3.0683,163.01,163.0,4.17495468]
[1730601014134,19.02707786,163.01,162.92,3.03324515]
[1730601014349,3.0698,162.94,162.92,3.03324515]
[1730601014539,4.32,162.95,162.92,3.03324515]